Workbook

Sheet EXJANVIER
A1: ETAGE | B1: MONTANT
A2: 1 | B2: =RANDBETWEEN(1,10000) -> 3670
A3: 1 | B3: =RANDBETWEEN(1,10000) -> 4424
A4: 1 | B4: 4304
A5: 1 | B5: 1649
A6: 1 | B6: 3949
A7: 1 | B7: 1352
A8: 2 | B8: 4175
A9: 2 | B9: 5682
A10: 2 | B10: 2044
A11: 2 | B11: 8465
A12: 2 | B12: 7386
A13: 2 | B13: 6187
A14: 2 | B14: 6184
A15: 3 | B15: 702
A16: 3 | B16: 915
A17: 3 | B17: 8170
A18: 3 | B18: 8008
A19: 3 | B19: 9958
A20: 3 | B20: 6822
A21: 3 | B21: 9291
A22: 4 | B22: 2693
A23: 4 | B23: 6631
A24: 4 | B24: 841
A25: 4 | B25: 4227
A26: 4 | B26: 5513

Sheet EXFEVRIER
A1: ETAGE | B1: MONTANT
A2: 1 | B2: =RANDBETWEEN(1,10000) -> 357
A3: 1 | B3: =RANDBETWEEN(1,10000) -> 5389
A4: 1 | B4: 3677
A5: 1 | B5: 1873
A6: 1 | B6: 3483
A7: 1 | B7: 5597
A8: 2 | B8: 6412
A9: 2 | B9: 7874
A10: 2 | B10: 7008
A11: 2 | B11: 8406
A12: 2 | B12: 7734
A13: 2 | B13: 8570
A14: 2 | B14: 8353
A15: 3 | B15: 4608
A16: 3 | B16: 5535
A17: 3 | B17: 8030
A18: 3 | B18: 6734
A19: 3 | B19: 5797
A20: 3 | B20: 3034
A21: 3 | B21: 2941
A22: 4 | B22: 1568
A23: 4 | B23: 9402
A24: 4 | B24: 2971
A25: 4 | B25: 6263
A26: 4 | B26: 9714

Sheet EXMARS
A1: ETAGE | B1: MONTANT
A2: 1 | B2: =RANDBETWEEN(1,10000) -> 6891
A3: 1 | B3: =RANDBETWEEN(1,10000) -> 3004
A4: 1 | B4: 6050
A5: 1 | B5: 103
A6: 1 | B6: 4105
A7: 1 | B7: 8756
A8: 2 | B8: 2724
A9: 2 | B9: 8125
A10: 2 | B10: 255
A11: 2 | B11: 1914
A12: 2 | B12: 9153
A13: 2 | B13: 8049
A14: 2 | B14: 3849
A15: 3 | B15: 4622
A16: 3 | B16: 7049
A17: 3 | B17: 5175
A18: 3 | B18: 7759
A19: 3 | B19: 8614
A20: 3 | B20: 761
A21: 3 | B21: 4549
A22: 4 | B22: 2956
A23: 4 | B23: 6499
A24: 4 | B24: 8900
A25: 4 | B25: 7845
A26: 4 | B26: 4075

Sheet JANVIER
B1: Avant | C1: Après
A2: TOTAL ETAGE 1 | B2: =SUMIF(EXJANVIER!A:A,1,EXJANVIER!B:B) -> 19348 | C2: =SUMIF(INDIRECT(Synthèse!$B$4&"!A:A"),1,(INDIRECT(Synthèse!$B$4&"!B:B"))) -> 19348
A3: TOTAL ETAGE 2 | B3: =SUMIF(EXJANVIER!A:A,2,EXJANVIER!B:B) -> 40123 | C3: =SUMIF(INDIRECT(Synthèse!$B$4&"!A:A"),2,(INDIRECT(Synthèse!$B$4&"!B:B"))) -> 40123
A4: TOTAL ETAGE 3 | B4: =SUMIF(EXJANVIER!A:A,3,EXJANVIER!B:B) -> 43866 | C4: =SUMIF(INDIRECT(Synthèse!$B$4&"!A:A"),3,(INDIRECT(Synthèse!$B$4&"!B:B"))) -> 43866
A5: TOTAL ETAGE 4 | B5: =SUMIF(EXJANVIER!A:A,4,EXJANVIER!B:B) -> 19905 | C5: =SUMIF(INDIRECT(Synthèse!$B$4&"!A:A"),4,(INDIRECT(Synthèse!$B$4&"!B:B"))) -> 19905

Sheet FEVRIER
B1: Avant | C1: Après
A2: TOTAL ETAGE 1 | B2: =SUMIF(EXFEVRIER!A:A,1,EXFEVRIER!B:B) -> 20376 | C2: =SUMIF(INDIRECT(Synthèse!$B$5&"!A:A"),1,(INDIRECT(Synthèse!$B$5&"!B:B"))) -> 
A3: TOTAL ETAGE 2 | B3: =SUMIF(EXFEVRIER!A:A,2,EXFEVRIER!B:B) -> 54357 | C3: =SUMIF(INDIRECT(Synthèse!$B$5&"!A:A"),2,(INDIRECT(Synthèse!$B$5&"!B:B"))) -> 
A4: TOTAL ETAGE 3 | B4: =SUMIF(EXFEVRIER!A:A,3,EXFEVRIER!B:B) -> 36679 | C4: =SUMIF(INDIRECT(Synthèse!$B$5&"!A:A"),3,(INDIRECT(Synthèse!$B$5&"!B:B"))) -> 
A5: TOTAL ETAGE 4 | B5: =SUMIF(EXFEVRIER!A:A,4,EXFEVRIER!B:B) -> 29918 | C5: =SUMIF(INDIRECT(Synthèse!$B$5&"!A:A"),4,(INDIRECT(Synthèse!$B$5&"!B:B"))) -> 

Sheet MARS
B1: Avant | C1: Après
A2: TOTAL ETAGE 1 | B2: =SUMIF(EXMARS!A:A,1,EXMARS!B:B) -> 28909 | C2: =SUMIF(INDIRECT(Synthèse!$B$6&"!A:A"),1,(INDIRECT(Synthèse!$B$6&"!B:B"))) -> 
A3: TOTAL ETAGE 2 | B3: =SUMIF(EXMARS!A:A,2,EXMARS!B:B) -> 34069 | C3: =SUMIF(INDIRECT(Synthèse!$B$6&"!A:A"),2,(INDIRECT(Synthèse!$B$6&"!B:B"))) -> 
A4: TOTAL ETAGE 3 | B4: =SUMIF(EXMARS!A:A,3,EXMARS!B:B) -> 38529 | C4: =SUMIF(INDIRECT(Synthèse!$B$6&"!A:A"),3,(INDIRECT(Synthèse!$B$6&"!B:B"))) -> 
A5: TOTAL ETAGE 4 | B5: =SUMIF(EXMARS!A:A,4,EXMARS!B:B) -> 30275 | C5: =SUMIF(INDIRECT(Synthèse!$B$6&"!A:A"),4,(INDIRECT(Synthèse!$B$6&"!B:B"))) -> 

Sheet Synthèse
A3: N° Index | B3: Noms des feuilles
A4: 1 | B4: =IFERROR(INDEX(NomsFeuilles,A4),"") -> EXJANVIER
A5: 2 | B5: =IFERROR(INDEX(NomsFeuilles,A5),"") -> EXPORTFEVRIER
A6: 3 | B6: =IFERROR(INDEX(NomsFeuilles,A6),"") -> EXPORTMARS
A7: 4 | B7: =IFERROR(INDEX(NomsFeuilles,A7),"") -> JANVIER
A8: 5 | B8: FEVRIER
A9: 6 | B9: MARS
A10: 7 | B10: Synthèse
A11: 8
A12: 9
A13: 10
A14: 11
A15: 12
A16: 13
A17: 14
A18: 15
A19: 16
A20: 17
A21: 18
A22: 19
A23: 20
A24: 21
A25: 22
A26: 23
A27: 24
